Workbook

Sheet Sheet1 (3)
A1: withseok.tistory.com
A2: 멘토:PWH | E2: 기본값 15000 | G2: 기본값 15000 | K2: 기본값 15000 | N2: 기본값 15000 | P2: 선택→ | Q2: y=a sin b (x-c)+d | S2: =MATCH(Q2,Z13:Z14,0) -> 1
E3: 15000 | F3: 함수 선택 | G3: 15000 | K3: 15000 | N3: 15000 | Q3: 만든이:SJS | R3: 멘토:PWH
F4: ↓ | K4: =IF(K3=15000,0,(K3-15000)*PI()*(Q5/180)) -> 0 | Q4: C 이동간격 | R4: 정의역간격
C5: y | D5: = | E5: =IF(E3=15000,1,1+((E3-15000)*E6)) -> 1 | F5: sin | G5: =IF(G3=15000,1,1+((G3-15000)*G6)) -> 1 | H5: ( | I5: x | J5: - | K5: =IF(K3=15000,"",IF(MOD((K3-15000)*Q5,180)=0,(((K3-15000)*Q5/180)&"π"),IF(MOD((K3-15000)*Q5,90)=0,TEXT((K3-15000)*Q5/90/2,"?/2")&"π",IF(MOD((K3-15000)*Q5,60)=0,TEXT((K3-15000)*Q5/60/3,"?/3")&"π",IF(MOD((K3-15000)*Q5,45)=0,TEXT((K3-15000)*Q5/45/4,"?/4")&"π",IF(MOD((K3-15000)*Q5,30)=0,TEXT((K3-15000)*Q5/30/6,"?/6")&"π",IF(MOD((K3-15000)*Q5,15)=0,TEXT((K3-15000)*Q5/15/12,"?/12")&"π",IF(MOD((K3-15000)*Q5,10)=0,TEXT((K3-15000)*Q5/10/18,"?/18")&"π",TEXT(K4,"0.00000"))))))))) ->  | L5: ) | M5: + | N5: =IF(N3=15000,0,((N3-15000)*N6)) -> 0 | Q5: 30 | R5: 2 | AS5: ="y="&IF(E5=1,"",E5)&F5&IF(G5=1,"",IF(G5>0,G5,"("&G5&")"))&IF(K4=0," x","(x-"&K5&")")&IF(N5=0,"",IF(N5>0," +"&N5," "&N5)) -> y=sin x
E6: =F6/10 -> 0.2 | F6: 2 | G6: =H6/10 -> 0.2 | H6: 2 | K6: =IF(K4=0,"",(K3-15000)*Q5&"º") ->  | N6: =O6/10 -> 0.5 | O6: 5 | W6: All
W7: sin
W8: cos | AF8: =IF(AE8=90,90,((90/$AA$12*AC8))) -> 0
W9: tan | AE9: 180도 찾기 | AF9: 각도 | AG9: =V7 -> 0 | AH9: =W7 -> sin | AI9: =W8 -> cos | AJ9: =W9 -> tan
AC10: =ROW()-310 -> -300 | AD10: =AD11-$X$11 -> -10.47197551 | AF10: -600 | AG10: =$E$5*SIN($G$5*($AD10-$K$4))+$N$5 -> 0.8660254038 | AH10: =IF($S$2=1,(IF(OR($F$5=$W$6,AH$9=$F$5),$E$5*SIN($G$5*($AD10-$K$4))+$N$5,5)),(IF(OR($F$5=$W$6,AH$9=$F$5),$E$5*SIN($G$5*$AD10-$K$4)+$N$5,5))) -> 0.8660254038 | AI10: =IF($S$2=1,IF(OR($F$5=$W$6,AI$9=$F$5),$E$5*COS($G$5*($AD10-$K$4))+$N$5,5),IF(OR($F$5=$W$6,AI$9=$F$5),$E$5*COS($G$5*$AD10-$K$4)+$N$5,5)) -> 5 | AJ10: =IF($S$2=1,IF(OR($F$5=$W$6,$F$5=AJ$9),$E$5*TAN($G$5*($AD10-$K$4))+$N$5,5),IF(OR($F$5=$W$6,$F$5=AJ$9),$E$5*TAN($G$5*$AD10-$K$4)+$N$5,5)) -> 5
W11: 간격 | X11: =PI()/180*$R$5 -> 0.03490658504 | Z11: 기준 | AA11: 0 | AC11: -299 | AD11: -10.43706893 | AF11: -598 | AG11: =$E$5*SIN($G$5*($AD11-$K$4))+$N$5 -> 0.8480480962 | AH11: =IF($S$2=1,(IF(OR($F$5=$W$6,AH$9=$F$5),$E$5*SIN($G$5*($AD11-$K$4))+$N$5,5)),(IF(OR($F$5=$W$6,AH$9=$F$5),$E$5*SIN($G$5*$AD11-$K$4)+$N$5,5))) -> 0.8480480962 | AI11: =IF($S$2=1,IF(OR($F$5=$W$6,AI$9=$F$5),$E$5*COS($G$5*($AD11-$K$4))+$N$5,5),IF(OR($F$5=$W$6,AI$9=$F$5),$E$5*COS($G$5*$AD11-$K$4)+$N$5,5)) -> 5 | AJ11: =IF($S$2=1,IF(OR($F$5=$W$6,$F$5=AJ$9),$E$5*TAN($G$5*($AD11-$K$4))+$N$5,5),IF(OR($F$5=$W$6,$F$5=AJ$9),$E$5*TAN($G$5*$AD11-$K$4)+$N$5,5)) -> 5
Z12: 90위치 | AA12: 45 | AC12: -298 | AD12: -10.40216234 | AF12: -596 | AG12: 0.8290375726 | AH12: 0.8290375726 | AI12: 5 | AJ12: 5
Z13: y=a sin b (x-c)+d | AA13: 1 | AC13: -297 | AD13: -10.36725576 | AF13: -594 | AG13: 0.8090169944 | AH13: 0.8090169944 | AI13: 5 | AJ13: 5
Z14: y=a sin (bx-c)+d | AA14: 2 | AC14: -296 | AD14: -10.33234917 | AF14: -592 | AG14: 0.7880107536 | AH14: 0.7880107536 | AI14: 5 | AJ14: 5
AC15: -295 | AD15: -10.29744259 | AF15: -590 | AG15: 0.7660444431 | AH15: 0.7660444431 | AI15: 5 | AJ15: 5
AC16: -294 | AD16: -10.262536 | AF16: -588 | AG16: 0.7431448255 | AH16: 0.7431448255 | AI16: 5 | AJ16: 5
AC17: -293 | AD17: -10.22762942 | AF17: -586 | AG17: 0.7193398003 | AH17: 0.7193398003 | AI17: 5 | AJ17: 5
AC18: -292 | AD18: -10.19272283 | AF18: -584 | AG18: 0.6946583705 | AH18: 0.6946583705 | AI18: 5 | AJ18: 5
AC19: -291 | AD19: -10.15781625 | AF19: -582 | AG19: 0.6691306064 | AH19: 0.6691306064 | AI19: 5 | AJ19: 5
AC20: -290 | AD20: -10.12290966 | AF20: -580 | AG20: 0.6427876097 | AH20: 0.6427876097 | AI20: 5 | AJ20: 5
AC21: -289 | AD21: -10.08800308 | AF21: -578 | AG21: 0.6156614753 | AH21: 0.6156614753 | AI21: 5 | AJ21: 5
AC22: -288 | AD22: -10.05309649 | AF22: -576 | AG22: 0.5877852523 | AH22: 0.5877852523 | AI22: 5 | AJ22: 5
AC23: -287 | AD23: -10.01818991 | AF23: -574 | AG23: 0.5591929035 | AH23: 0.5591929035 | AI23: 5 | AJ23: 5
AC24: -286 | AD24: -9.983283321 | AF24: -572 | AG24: 0.5299192642 | AH24: 0.5299192642 | AI24: 5 | AJ24: 5
AC25: -285 | AD25: -9.948376736 | AF25: -570 | AG25: 0.5 | AH25: 0.5 | AI25: 5 | AJ25: 5
AC26: -284 | AD26: -9.913470151 | AF26: -568 | AG26: 0.4694715628 | AH26: 0.4694715628 | AI26: 5 | AJ26: 5
AC27: -283 | AD27: -9.878563566 | AF27: -566 | AG27: 0.4383711468 | AH27: 0.4383711468 | AI27: 5 | AJ27: 5
AC28: -282 | AD28: -9.843656981 | AF28: -564 | AG28: 0.4067366431 | AH28: 0.4067366431 | AI28: 5 | AJ28: 5
AC29: -281 | AD29: -9.808750396 | AF29: -562 | AG29: 0.3746065934 | AH29: 0.3746065934 | AI29: 5 | AJ29: 5
AC30: -280 | AD30: -9.773843811 | AF30: -560 | AG30: 0.3420201433 | AH30: 0.3420201433 | AI30: 5 | AJ30: 5
AC31: -279 | AD31: -9.738937226 | AF31: -558 | AG31: 0.3090169944 | AH31: 0.3090169944 | AI31: 5 | AJ31: 5
AC32: -278 | AD32: -9.704030641 | AF32: -556 | AG32: 0.2756373558 | AH32: 0.2756373558 | AI32: 5 | AJ32: 5
AC33: -277 | AD33: -9.669124056 | AF33: -554 | AG33: 0.2419218956 | AH33: 0.2419218956 | AI33: 5 | AJ33: 5
AC34: -276 | AD34: -9.634217471 | AF34: -552 | AG34: 0.2079116908 | AH34: 0.2079116908 | AI34: 5 | AJ34: 5
AC35: -275 | AD35: -9.599310886 | AF35: -550 | AG35: 0.1736481777 | AH35: 0.1736481777 | AI35: 5 | AJ35: 5
AC36: -274 | AD36: -9.564404301 | AF36: -548 | AG36: 0.139173101 | AH36: 0.139173101 | AI36: 5 | AJ36: 5
AC37: -273 | AD37: -9.529497716 | AF37: -546 | AG37: 0.1045284633 | AH37: 0.1045284633 | AI37: 5 | AJ37: 5
AC38: -272 | AD38: -9.494591131 | AF38: -544 | AG38: 0.06975647374 | AH38: 0.06975647374 | AI38: 5 | AJ38: 5
AC39: -271 | AD39: -9.459684546 | AF39: -542 | AG39: 0.0348994967 | AH39: 0.0348994967 | AI39: 5 | AJ39: 5
AC40: -270 | AD40: -9.424777961 | AF40: -540 | AG40: -5.72109634e-14 | AH40: -5.72109634e-14 | AI40: 5 | AJ40: 5
AC41: -269 | AD41: -9.389871376 | AF41: -538 | AG41: -0.0348994967 | AH41: -0.0348994967 | AI41: 5 | AJ41: 5
AC42: -268 | AD42: -9.354964791 | AF42: -536 | AG42: -0.06975647374 | AH42: -0.06975647374 | AI42: 5 | AJ42: 5
AC43: -267 | AD43: -9.320058206 | AF43: -534 | AG43: -0.1045284633 | AH43: -0.1045284633 | AI43: 5 | AJ43: 5
AC44: -266 | AD44: -9.285151621 | AF44: -532 | AG44: -0.139173101 | AH44: -0.139173101 | AI44: 5 | AJ44: 5
AC45: -265 | AD45: -9.250245036 | AF45: -530 | AG45: -0.1736481777 | AH45: -0.1736481777 | AI45: 5 | AJ45: 5
AC46: -264 | AD46: -9.215338451 | AF46: -528 | AG46: -0.2079116908 | AH46: -0.2079116908 | AI46: 5 | AJ46: 5
AC47: -263 | AD47: -9.180431865 | AF47: -526 | AG47: -0.2419218956 | AH47: -0.2419218956 | AI47: 5 | AJ47: 5
AC48: -262 | AD48: -9.14552528 | AF48: -524 | AG48: -0.2756373558 | AH48: -0.2756373558 | AI48: 5 | AJ48: 5
AC49: -261 | AD49: -9.110618695 | AF49: -522 | AG49: -0.3090169944 | AH49: -0.3090169944 | AI49: 5 | AJ49: 5
AC50: -260 | AD50: -9.07571211 | AF50: -520 | AG50: -0.3420201433 | AH50: -0.3420201433 | AI50: 5 | AJ50: 5
AC51: -259 | AD51: -9.040805525 | AF51: -518 | AG51: -0.3746065934 | AH51: -0.3746065934 | AI51: 5 | AJ51: 5
AC52: -258 | AD52: -9.00589894 | AF52: -516 | AG52: -0.4067366431 | AH52: -0.4067366431 | AI52: 5 | AJ52: 5
AC53: -257 | AD53: -8.970992355 | AF53: -514 | AG53: -0.4383711468 | AH53: -0.4383711468 | AI53: 5 | AJ53: 5
AC54: -256 | AD54: -8.93608577 | AF54: -512 | AG54: -0.4694715628 | AH54: -0.4694715628 | AI54: 5 | AJ54: 5
AC55: -255 | AD55: -8.901179185 | AF55: -510 | AG55: -0.5 | AH55: -0.5 | AI55: 5 | AJ55: 5
AC56: -254 | AD56: -8.8662726 | AF56: -508 | AG56: -0.5299192642 | AH56: -0.5299192642 | AI56: 5 | AJ56: 5
AC57: -253 | AD57: -8.831366015 | AF57: -506 | AG57: -0.5591929035 | AH57: -0.5591929035 | AI57: 5 | AJ57: 5
AC58: -252 | AD58: -8.79645943 | AF58: -504 | AG58: -0.5877852523 | AH58: -0.5877852523 | AI58: 5 | AJ58: 5
AC59: -251 | AD59: -8.761552845 | AF59: -502 | AG59: -0.6156614753 | AH59: -0.6156614753 | AI59: 5 | AJ59: 5
AC60: -250 | AD60: -8.72664626 | AF60: -500 | AG60: -0.6427876097 | AH60: -0.6427876097 | AI60: 5 | AJ60: 5
AC61: -249 | AD61: -8.691739675 | AF61: -498 | AG61: -0.6691306064 | AH61: -0.6691306064 | AI61: 5 | AJ61: 5
AC62: -248 | AD62: -8.65683309 | AF62: -496 | AG62: -0.6946583705 | AH62: -0.6946583705 | AI62: 5 | AJ62: 5
AC63: -247 | AD63: -8.621926505 | AF63: -494 | AG63: -0.7193398003 | AH63: -0.7193398003 | AI63: 5 | AJ63: 5
AC64: -246 | AD64: -8.58701992 | AF64: -492 | AG64: -0.7431448255 | AH64: -0.7431448255 | AI64: 5 | AJ64: 5
AC65: -245 | AD65: -8.552113335 | AF65: -490 | AG65: -0.7660444431 | AH65: -0.7660444431 | AI65: 5 | AJ65: 5
AC66: -244 | AD66: -8.51720675 | AF66: -488 | AG66: -0.7880107536 | AH66: -0.7880107536 | AI66: 5 | AJ66: 5
AC67: -243 | AD67: -8.482300165 | AF67: -486 | AG67: -0.8090169944 | AH67: -0.8090169944 | AI67: 5 | AJ67: 5
AC68: -242 | AD68: -8.44739358 | AF68: -484 | AG68: -0.8290375726 | AH68: -0.8290375726 | AI68: 5 | AJ68: 5
AC69: -241 | AD69: -8.412486995 | AF69: -482 | AG69: -0.8480480962 | AH69: -0.8480480962 | AI69: 5 | AJ69: 5
AC70: -240 | AD70: -8.37758041 | AF70: -480 | AG70: -0.8660254038 | AH70: -0.8660254038 | AI70: 5 | AJ70: 5
AC71: -239 | AD71: -8.342673825 | AF71: -478 | AG71: -0.8829475929 | AH71: -0.8829475929 | AI71: 5 | AJ71: 5
AC72: -238 | AD72: -8.307767239 | AF72: =IF(AE72=90,90,((90/$AA$12*AC72))) -> -476 | AG72: -0.8987940463 | AH72: -0.8987940463 | AI72: 5 | AJ72: 5
AC73: -237 | AD73: -8.272860654 | AF73: -474 | AG73: -0.9135454576 | AH73: -0.9135454576 | AI73: 5 | AJ73: 5
AC74: =ROW()-310 -> -236 | AD74: =AD75-$X$11 -> -8.237954069 | AF74: -472 | AG74: -0.9271838546 | AH74: -0.9271838546 | AI74: 5 | AJ74: 5
AC75: -235 | AD75: -8.203047484 | AF75: -470 | AG75: =$E$5*SIN($G$5*($AD75-$K$4))+$N$5 -> -0.9396926208 | AH75: =IF($S$2=1,(IF(OR($F$5=$W$6,AH$9=$F$5),$E$5*SIN($G$5*($AD75-$K$4))+$N$5,5)),(IF(OR($F$5=$W$6,AH$9=$F$5),$E$5*SIN($G$5*$AD75-$K$4)+$N$5,5))) -> -0.9396926208 | AI75: =IF($S$2=1,IF(OR($F$5=$W$6,AI$9=$F$5),$E$5*COS($G$5*($AD75-$K$4))+$N$5,5),IF(OR($F$5=$W$6,AI$9=$F$5),$E$5*COS($G$5*$AD75-$K$4)+$N$5,5)) -> 5 | AJ75: =IF($S$2=1,IF(OR($F$5=$W$6,$F$5=AJ$9),$E$5*TAN($G$5*($AD75-$K$4))+$N$5,5),IF(OR($F$5=$W$6,$F$5=AJ$9),$E$5*TAN($G$5*$AD75-$K$4)+$N$5,5)) -> 5
AC76: -234 | AD76: -8.168140899 | AF76: -468 | AG76: -0.9510565163 | AH76: -0.9510565163 | AI76: 5 | AJ76: 5
AC77: -233 | AD77: -8.133234314 | AF77: -466 | AG77: -0.9612616959 | AH77: -0.9612616959 | AI77: 5 | AJ77: 5
AC78: -232 | AD78: -8.098327729 | AF78: -464 | AG78: -0.9702957263 | AH78: -0.9702957263 | AI78: 5 | AJ78: 5
AC79: -231 | AD79: -8.063421144 | AF79: -462 | AG79: -0.9781476007 | AH79: -0.9781476007 | AI79: 5 | AJ79: 5
AC80: -230 | AD80: -8.028514559 | AF80: -460 | AG80: -0.984807753 | AH80: -0.984807753 | AI80: 5 | AJ80: 5
AC81: -229 | AD81: -7.993607974 | AF81: -458 | AG81: -0.9902680687 | AH81: -0.9902680687 | AI81: 5 | AJ81: 5
AC82: -228 | AD82: -7.958701389 | AF82: -456 | AG82: -0.9945218954 | AH82: -0.9945218954 | AI82: 5 | AJ82: 5
AC83: -227 | AD83: -7.923794804 | AF83: -454 | AG83: -0.9975640503 | AH83: -0.9975640503 | AI83: 5 | AJ83: 5
AC84: -226 | AD84: -7.888888219 | AF84: -452 | AG84: -0.999390827 | AH84: -0.999390827 | AI84: 5 | AJ84: 5
AC85: -225 | AD85: -7.853981634 | AF85: -450 | AG85: -1 | AH85: -1 | AI85: 5 | AJ85: 5
AC86: -224 | AD86: -7.819075049 | AF86: -448 | AG86: -0.999390827 | AH86: -0.999390827 | AI86: 5 | AJ86: 5
AC87: -223 | AD87: -7.784168464 | AF87: -446 | AG87: -0.9975640503 | AH87: -0.9975640503 | AI87: 5 | AJ87: 5
AC88: -222 | AD88: -7.749261879 | AF88: -444 | AG88: -0.9945218954 | AH88: -0.9945218954 | AI88: 5 | AJ88: 5
AC89: -221 | AD89: -7.714355294 | AF89: -442 | AG89: -0.9902680687 | AH89: -0.9902680687 | AI89: 5 | AJ89: 5
AC90: -220 | AD90: -7.679448709 | AF90: -440 | AG90: -0.984807753 | AH90: -0.984807753 | AI90: 5 | AJ90: 5
AC91: -219 | AD91: -7.644542124 | AF91: -438 | AG91: -0.9781476007 | AH91: -0.9781476007 | AI91: 5 | AJ91: 5
AC92: -218 | AD92: -7.609635539 | AF92: -436 | AG92: -0.9702957263 | AH92: -0.9702957263 | AI92: 5 | AJ92: 5
AC93: -217 | AD93: -7.574728954 | AF93: -434 | AG93: -0.9612616959 | AH93: -0.9612616959 | AI93: 5 | AJ93: 5
AC94: -216 | AD94: -7.539822369 | AF94: -432 | AG94: -0.9510565163 | AH94: -0.9510565163 | AI94: 5 | AJ94: 5
AC95: -215 | AD95: -7.504915784 | AF95: -430 | AG95: -0.9396926208 | AH95: -0.9396926208 | AI95: 5 | AJ95: 5
AC96: -214 | AD96: -7.470009199 | AF96: -428 | AG96: -0.9271838546 | AH96: -0.9271838546 | AI96: 5 | AJ96: 5
AC97: -213 | AD97: -7.435102613 | AF97: -426 | AG97: -0.9135454576 | AH97: -0.9135454576 | AI97: 5 | AJ97: 5
AC98: -212 | AD98: -7.400196028 | AF98: -424 | AG98: -0.8987940463 | AH98: -0.8987940463 | AI98: 5 | AJ98: 5
AC99: -211 | AD99: -7.365289443 | AF99: -422 | AG99: -0.8829475929 | AH99: -0.8829475929 | AI99: 5 | AJ99: 5
AC100: -210 | AD100: -7.330382858 | AF100: -420 | AG100: -0.8660254038 | AH100: -0.8660254038 | AI100: 5 | AJ100: 5
AC101: -209 | AD101: -7.295476273 | AF101: -418 | AG101: -0.8480480962 | AH101: -0.8480480962 | AI101: 5 | AJ101: 5
AC102: -208 | AD102: -7.260569688 | AF102: -416 | AG102: -0.8290375726 | AH102: -0.8290375726 | AI102: 5 | AJ102: 5
AC103: -207 | AD103: -7.225663103 | AF103: -414 | AG103: -0.8090169944 | AH103: -0.8090169944 | AI103: 5 | AJ103: 5
AC104: -206 | AD104: -7.190756518 | AF104: -412 | AG104: -0.7880107536 | AH104: -0.7880107536 | AI104: 5 | AJ104: 5
AC105: -205 | AD105: -7.155849933 | AF105: -410 | AG105: -0.7660444431 | AH105: -0.7660444431 | AI105: 5 | AJ105: 5
AC106: -204 | AD106: -7.120943348 | AF106: -408 | AG106: -0.7431448255 | AH106: -0.7431448255 | AI106: 5 | AJ106: 5
AC107: -203 | AD107: -7.086036763 | AF107: -406 | AG107: -0.7193398003 | AH107: -0.7193398003 | AI107: 5 | AJ107: 5
AC108: -202 | AD108: -7.051130178 | AF108: -404 | AG108: -0.6946583705 | AH108: -0.6946583705 | AI108: 5 | AJ108: 5
AC109: -201 | AD109: -7.016223593 | AF109: -402 | AG109: -0.6691306064 | AH109: -0.6691306064 | AI109: 5 | AJ109: 5
AC110: -200 | AD110: -6.981317008 | AF110: -400 | AG110: -0.6427876097 | AH110: -0.6427876097 | AI110: 5 | AJ110: 5
AC111: -199 | AD111: -6.946410423 | AF111: -398 | AG111: -0.6156614753 | AH111: -0.6156614753 | AI111: 5 | AJ111: 5
AC112: -198 | AD112: -6.911503838 | AF112: -396 | AG112: -0.5877852523 | AH112: -0.5877852523 | AI112: 5 | AJ112: 5
AC113: -197 | AD113: -6.876597253 | AF113: -394 | AG113: -0.5591929035 | AH113: -0.5591929035 | AI113: 5 | AJ113: 5
AC114: -196 | AD114: -6.841690668 | AF114: -392 | AG114: -0.5299192642 | AH114: -0.5299192642 | AI114: 5 | AJ114: 5
AC115: -195 | AD115: -6.806784083 | AF115: -390 | AG115: -0.5 | AH115: -0.5 | AI115: 5 | AJ115: 5
AC116: -194 | AD116: -6.771877498 | AF116: -388 | AG116: -0.4694715628 | AH116: -0.4694715628 | AI116: 5 | AJ116: 5
AC117: -193 | AD117: -6.736970913 | AF117: -386 | AG117: -0.4383711468 | AH117: -0.4383711468 | AI117: 5 | AJ117: 5
AC118: -192 | AD118: -6.702064328 | AF118: -384 | AG118: -0.4067366431 | AH118: -0.4067366431 | AI118: 5 | AJ118: 5
AC119: -191 | AD119: -6.667157743 | AF119: -382 | AG119: -0.3746065934 | AH119: -0.3746065934 | AI119: 5 | AJ119: 5
AC120: -190 | AD120: -6.632251158 | AF120: -380 | AG120: -0.3420201433 | AH120: -0.3420201433 | AI120: 5 | AJ120: 5
AC121: -189 | AD121: -6.597344573 | AF121: -378 | AG121: -0.3090169944 | AH121: -0.3090169944 | AI121: 5 | AJ121: 5
AC122: -188 | AD122: -6.562437987 | AF122: -376 | AG122: -0.2756373558 | AH122: -0.2756373558 | AI122: 5 | AJ122: 5
AC123: -187 | AD123: -6.527531402 | AF123: -374 | AG123: -0.2419218956 | AH123: -0.2419218956 | AI123: 5 | AJ123: 5
AC124: -186 | AD124: -6.492624817 | AF124: -372 | AG124: -0.2079116908 | AH124: -0.2079116908 | AI124: 5 | AJ124: 5
AC125: -185 | AD125: -6.457718232 | AF125: -370 | AG125: -0.1736481777 | AH125: -0.1736481777 | AI125: 5 | AJ125: 5
AC126: -184 | AD126: -6.422811647 | AF126: -368 | AG126: -0.139173101 | AH126: -0.139173101 | AI126: 5 | AJ126: 5
AC127: -183 | AD127: -6.387905062 | AF127: -366 | AG127: -0.1045284633 | AH127: -0.1045284633 | AI127: 5 | AJ127: 5
AC128: -182 | AD128: -6.352998477 | AF128: -364 | AG128: -0.06975647374 | AH128: -0.06975647374 | AI128: 5 | AJ128: 5
AC129: -181 | AD129: -6.318091892 | AF129: -362 | AG129: -0.0348994967 | AH129: -0.0348994967 | AI129: 5 | AJ129: 5
AC130: -180 | AD130: -6.283185307 | AF130: -360 | AG130: 2.156131176e-14 | AH130: 2.156131176e-14 | AI130: 5 | AJ130: 5
AC131: -179 | AD131: -6.248278722 | AF131: -358 | AG131: 0.0348994967 | AH131: 0.0348994967 | AI131: 5 | AJ131: 5
AC132: -178 | AD132: -6.213372137 | AF132: -356 | AG132: 0.06975647374 | AH132: 0.06975647374 | AI132: 5 | AJ132: 5
AC133: -177 | AD133: -6.178465552 | AF133: -354 | AG133: 0.1045284633 | AH133: 0.1045284633 | AI133: 5 | AJ133: 5
AC134: -176 | AD134: -6.143558967 | AF134: -352 | AG134: 0.139173101 | AH134: 0.139173101 | AI134: 5 | AJ134: 5
AC135: -175 | AD135: -6.108652382 | AF135: -350 | AG135: 0.1736481777 | AH135: 0.1736481777 | AI135: 5 | AJ135: 5
AC136: -174 | AD136: -6.073745797 | AF136: =IF(AE136=90,90,((90/$AA$12*AC136))) -> -348 | AG136: 0.2079116908 | AH136: 0.2079116908 | AI136: 5 | AJ136: 5
AC137: -173 | AD137: -6.038839212 | AF137: -346 | AG137: 0.2419218956 | AH137: 0.2419218956 | AI137: 5 | AJ137: 5
AC138: =ROW()-310 -> -172 | AD138: =AD139-$X$11 -> -6.003932627 | AF138: -344 | AG138: 0.2756373558 | AH138: 0.2756373558 | AI138: 5 | AJ138: 5
AC139: -171 | AD139: -5.969026042 | AF139: -342 | AG139: =$E$5*SIN($G$5*($AD139-$K$4))+$N$5 -> 0.3090169944 | AH139: =IF($S$2=1,(IF(OR($F$5=$W$6,AH$9=$F$5),$E$5*SIN($G$5*($AD139-$K$4))+$N$5,5)),(IF(OR($F$5=$W$6,AH$9=$F$5),$E$5*SIN($G$5*$AD139-$K$4)+$N$5,5))) -> 0.3090169944 | AI139: =IF($S$2=1,IF(OR($F$5=$W$6,AI$9=$F$5),$E$5*COS($G$5*($AD139-$K$4))+$N$5,5),IF(OR($F$5=$W$6,AI$9=$F$5),$E$5*COS($G$5*$AD139-$K$4)+$N$5,5)) -> 5 | AJ139: =IF($S$2=1,IF(OR($F$5=$W$6,$F$5=AJ$9),$E$5*TAN($G$5*($AD139-$K$4))+$N$5,5),IF(OR($F$5=$W$6,$F$5=AJ$9),$E$5*TAN($G$5*$AD139-$K$4)+$N$5,5)) -> 5
AC140: -170 | AD140: -5.934119457 | AF140: -340 | AG140: 0.3420201433 | AH140: 0.3420201433 | AI140: 5 | AJ140: 5
AC141: -169 | AD141: -5.899212872 | AF141: -338 | AG141: 0.3746065934 | AH141: 0.3746065934 | AI141: 5 | AJ141: 5
AC142: -168 | AD142: -5.864306287 | AF142: -336 | AG142: 0.4067366431 | AH142: 0.4067366431 | AI142: 5 | AJ142: 5
AC143: -167 | AD143: -5.829399702 | AF143: -334 | AG143: 0.4383711468 | AH143: 0.4383711468 | AI143: 5 | AJ143: 5
AC144: -166 | AD144: -5.794493117 | AF144: -332 | AG144: 0.4694715628 | AH144: 0.4694715628 | AI144: 5 | AJ144: 5
AC145: -165 | AD145: -5.759586532 | AF145: -330 | AG145: 0.5 | AH145: 0.5 | AI145: 5 | AJ145: 5
AC146: -164 | AD146: -5.724679947 | AF146: -328 | AG146: 0.5299192642 | AH146: 0.5299192642 | AI146: 5 | AJ146: 5
AC147: -163 | AD147: -5.689773362 | AF147: -326 | AG147: 0.5591929035 | AH147: 0.5591929035 | AI147: 5 | AJ147: 5
AC148: -162 | AD148: -5.654866776 | AF148: -324 | AG148: 0.5877852523 | AH148: 0.5877852523 | AI148: 5 | AJ148: 5
AC149: -161 | AD149: -5.619960191 | AF149: -322 | AG149: 0.6156614753 | AH149: 0.6156614753 | AI149: 5 | AJ149: 5
AC150: -160 | AD150: -5.585053606 | AF150: -320 | AG150: 0.6427876097 | AH150: 0.6427876097 | AI150: 5 | AJ150: 5
AC151: -159 | AD151: -5.550147021 | AF151: -318 | AG151: 0.6691306064 | AH151: 0.6691306064 | AI151: 5 | AJ151: 5
AC152: -158 | AD152: -5.515240436 | AF152: -316 | AG152: 0.6946583705 | AH152: 0.6946583705 | AI152: 5 | AJ152: 5
AC153: -157 | AD153: -5.480333851 | AF153: -314 | AG153: 0.7193398003 | AH153: 0.7193398003 | AI153: 5 | AJ153: 5
AC154: -156 | AD154: -5.445427266 | AF154: -312 | AG154: 0.7431448255 | AH154: 0.7431448255 | AI154: 5 | AJ154: 5
AC155: -155 | AD155: -5.410520681 | AF155: -310 | AG155: 0.7660444431 | AH155: 0.7660444431 | AI155: 5 | AJ155: 5
AC156: -154 | AD156: -5.375614096 | AF156: -308 | AG156: 0.7880107536 | AH156: 0.7880107536 | AI156: 5 | AJ156: 5
AC157: -153 | AD157: -5.340707511 | AF157: -306 | AG157: 0.8090169944 | AH157: 0.8090169944 | AI157: 5 | AJ157: 5
AC158: -152 | AD158: -5.305800926 | AF158: -304 | AG158: 0.8290375726 | AH158: 0.8290375726 | AI158: 5 | AJ158: 5
AC159: -151 | AD159: -5.270894341 | AF159: -302 | AG159: 0.8480480962 | AH159: 0.8480480962 | AI159: 5 | AJ159: 5
AC160: -150 | AD160: -5.235987756 | AF160: -300 | AG160: 0.8660254038 | AH160: 0.8660254038 | AI160: 5 | AJ160: 5
AC161: -149 | AD161: -5.201081171 | AF161: -298 | AG161: 0.8829475929 | AH161: 0.8829475929 | AI161: 5 | AJ161: 5
AC162: -148 | AD162: -5.166174586 | AF162: -296 | AG162: 0.8987940463 | AH162: 0.8987940463 | AI162: 5 | AJ162: 5
AC163: -147 | AD163: -5.131268001 | AF163: -294 | AG163: 0.9135454576 | AH163: 0.9135454576 | AI163: 5 | AJ163: 5
AC164: -146 | AD164: -5.096361416 | AF164: -292 | AG164: 0.9271838546 | AH164: 0.9271838546 | AI164: 5 | AJ164: 5
AC165: -145 | AD165: -5.061454831 | AF165: -290 | AG165: 0.9396926208 | AH165: 0.9396926208 | AI165: 5 | AJ165: 5
AC166: -144 | AD166: -5.026548246 | AF166: -288 | AG166: 0.9510565163 | AH166: 0.9510565163 | AI166: 5 | AJ166: 5
AC167: -143 | AD167: -4.991641661 | AF167: -286 | AG167: 0.9612616959 | AH167: 0.9612616959 | AI167: 5 | AJ167: 5
AC168: -142 | AD168: -4.956735076 | AF168: -284 | AG168: 0.9702957263 | AH168: 0.9702957263 | AI168: 5 | AJ168: 5
AC169: -141 | AD169: -4.921828491 | AF169: -282 | AG169: 0.9781476007 | AH169: 0.9781476007 | AI169: 5 | AJ169: 5
AC170: -140 | AD170: -4.886921906 | AF170: -280 | AG170: 0.984807753 | AH170: 0.984807753 | AI170: 5 | AJ170: 5
AC171: -139 | AD171: -4.852015321 | AF171: -278 | AG171: 0.9902680687 | AH171: 0.9902680687 | AI171: 5 | AJ171: 5
AC172: -138 | AD172: -4.817108736 | AF172: -276 | AG172: 0.9945218954 | AH172: 0.9945218954 | AI172: 5 | AJ172: 5
AC173: -137 | AD173: -4.78220215 | AF173: -274 | AG173: 0.9975640503 | AH173: 0.9975640503 | AI173: 5 | AJ173: 5
AC174: -136 | AD174: -4.747295565 | AF174: -272 | AG174: 0.999390827 | AH174: 0.999390827 | AI174: 5 | AJ174: 5
AC175: -135 | AD175: -4.71238898 | AF175: -270 | AG175: 1 | AH175: 1 | AI175: 5 | AJ175: 5
AC176: -134 | AD176: -4.677482395 | AF176: -268 | AG176: 0.999390827 | AH176: 0.999390827 | AI176: 5 | AJ176: 5
AC177: -133 | AD177: -4.64257581 | AF177: -266 | AG177: 0.9975640503 | AH177: 0.9975640503 | AI177: 5 | AJ177: 5
AC178: -132 | AD178: -4.607669225 | AF178: -264 | AG178: 0.9945218954 | AH178: 0.9945218954 | AI178: 5 | AJ178: 5
AC179: -131 | AD179: -4.57276264 | AF179: -262 | AG179: 0.9902680687 | AH179: 0.9902680687 | AI179: 5 | AJ179: 5
AC180: -130 | AD180: -4.537856055 | AF180: -260 | AG180: 0.984807753 | AH180: 0.984807753 | AI180: 5 | AJ180: 5
AC181: -129 | AD181: -4.50294947 | AF181: -258 | AG181: 0.9781476007 | AH181: 0.9781476007 | AI181: 5 | AJ181: 5
AC182: -128 | AD182: -4.468042885 | AF182: -256 | AG182: 0.9702957263 | AH182: 0.9702957263 | AI182: 5 | AJ182: 5
AC183: -127 | AD183: -4.4331363 | AF183: -254 | AG183: 0.9612616959 | AH183: 0.9612616959 | AI183: 5 | AJ183: 5
AC184: -126 | AD184: -4.398229715 | AF184: -252 | AG184: 0.9510565163 | AH184: 0.9510565163 | AI184: 5 | AJ184: 5
AC185: -125 | AD185: -4.36332313 | AF185: -250 | AG185: 0.9396926208 | AH185: 0.9396926208 | AI185: 5 | AJ185: 5
AC186: -124 | AD186: -4.328416545 | AF186: -248 | AG186: 0.9271838546 | AH186: 0.9271838546 | AI186: 5 | AJ186: 5
AC187: -123 | AD187: -4.29350996 | AF187: -246 | AG187: 0.9135454576 | AH187: 0.9135454576 | AI187: 5 | AJ187: 5
AC188: -122 | AD188: -4.258603375 | AF188: -244 | AG188: 0.8987940463 | AH188: 0.8987940463 | AI188: 5 | AJ188: 5
AC189: -121 | AD189: -4.22369679 | AF189: -242 | AG189: 0.8829475929 | AH189: 0.8829475929 | AI189: 5 | AJ189: 5
AC190: -120 | AD190: -4.188790205 | AF190: -240 | AG190: 0.8660254038 | AH190: 0.8660254038 | AI190: 5 | AJ190: 5
AC191: -119 | AD191: -4.15388362 | AF191: -238 | AG191: 0.8480480962 | AH191: 0.8480480962 | AI191: 5 | AJ191: 5
AC192: -118 | AD192: -4.118977035 | AF192: -236 | AG192: 0.8290375726 | AH192: 0.8290375726 | AI192: 5 | AJ192: 5
AC193: -117 | AD193: -4.08407045 | AF193: -234 | AG193: 0.8090169944 | AH193: 0.8090169944 | AI193: 5 | AJ193: 5
AC194: -116 | AD194: -4.049163865 | AF194: -232 | AG194: 0.7880107536 | AH194: 0.7880107536 | AI194: 5 | AJ194: 5
AC195: -115 | AD195: -4.01425728 | AF195: -230 | AG195: 0.7660444431 | AH195: 0.7660444431 | AI195: 5 | AJ195: 5
AC196: -114 | AD196: -3.979350695 | AF196: -228 | AG196: 0.7431448255 | AH196: 0.7431448255 | AI196: 5 | AJ196: 5
AC197: -113 | AD197: -3.94444411 | AF197: -226 | AG197: 0.7193398003 | AH197: 0.7193398003 | AI197: 5 | AJ197: 5
AC198: -112 | AD198: -3.909537524 | AF198: -224 | AG198: 0.6946583705 | AH198: 0.6946583705 | AI198: 5 | AJ198: 5
AC199: -111 | AD199: -3.874630939 | AF199: -222 | AG199: 0.6691306064 | AH199: 0.6691306064 | AI199: 5 | AJ199: 5
AC200: -110 | AD200: -3.839724354 | AF200: =IF(AE200=90,90,((90/$AA$12*AC200))) -> -220 | AG200: 0.6427876097 | AH200: 0.6427876097 | AI200: 5 | AJ200: 5
... 410 more rows
